[Event "AI Cup Div-3 2023"]
[Site "Online"]
[Date "2023.09.25"]
[Round "51.2"]
[White "Beerdsen, Thomas"]
[Black "Vokhidov, Shamsiddin"]
[Result "0-1"]
[Annotator "ChessBase"]
[ECO "B50"]
[WhiteElo "2511"]
[BlackElo "2578"]
[PlyCount "82"]
[EventDate "2023.09.18"]
[EventType "k.o."]
[EventCountry "NET"]
[SourceTitle "playchess.com"]
[Source "ChessBase"]
[SourceQuality "1"]
[TimeControl "900+3"]

1. e4 {[%emt 0:00:04]} c5 {[%emt 0:00:07]} 2. Nf3 {[%emt 0:00:05]} d6 {[%emt 0:00:02]} 3. Nc3 {[%emt 0:00:28]} Nf6 {[%emt 0:00:02]} 4. e5 {[%emt 0:00:03]} dxe5 {[%emt 0:00:00]} 5. Nxe5 {[%emt 0:00:01]} a6 {[%emt 0:00:01]} 6. Qe2 {[%emt 0:00:06]} b5 {[%emt 0:00:22]} 7. a4 {[%emt 0:00:58]} b4 {[%emt 0:00:03]} 8. Qf3 {[%emt 0:00:01]} Ra7 {[%emt 0:01:07]} 9. Bc4 {[%emt 0:05:30]} e6 {[%emt 0:01:00]} 10. Ne2 {[%emt 0:00:55]} Bb7 {[%emt 0:00:07]} 11. Qh3 {[%emt 0:00:14]} Qc7 {[%emt 0:00:06]} 12. f4 {[%emt 0:00:11]} Bd6 {[%emt 0:00:11]} 13. O-O {[%emt 0:00:14]} O-O {[%emt 0:00:38]} 14. Ng4 {[%emt 0:00:30]} Nxg4 {[%emt 0:00:12]} 15. Qxg4 {[%emt 0:00:02]} Nc6 {[%emt 0:00:25]} 16. d3 {[%emt 0:00:09]} Na5 {[%emt 0:00:02]} 17. Ba2 {[%emt 0:01:02]} b3 {[%emt 0:00:20]} 18. cxb3 {[%emt 0:00:06]} Bd5 {[%emt 0:00:15]} 19. Be3 {[%emt 0:00:41]} Rb7 {[%emt 0:00:11]} 20. Rac1 {[%emt 0:00:27]} Nxb3 {[%emt 0:00:05]} 21. Rc2 {[%emt 0:00:26]} Rb4 {[%emt 0:00:37]} 22. Nc3 {[%emt 0:00:05]} Bc6 {[%emt 0:00:21]} 23. Qh5 {[%emt 0:00:41]} Nd4 {[%emt 0:00:18]} 24. Rcf2 {[%emt 0:00:42]} g6 {[%emt 0:00:57]} 25. Qd1 {[%emt 0:00:03]} Rd8 {[%emt 0:00:14]} 26. Bc4 {[%emt 0:00:16]} Qb7 {[%emt 0:00:18]} 27. Bc1 {[%emt 0:00:26]} Be7 {[%emt 0:00:05]} 28. Qe1 {[%emt 0:00:46]} Bh4 {[%emt 0:00:04]} 29. Qe5 {[%emt 0:00:18]} Bxf2+ {[%emt 0:00:13]} 30. Rxf2 {[%emt 0:00:01]} Bxg2 {[%emt 0:00:00]} 31. Qf6 {[%emt 0:00:32]} Rd7 {[%emt 0:00:59]} 32. Rxg2 {[%emt 0:00:13]} Nf3+ {[%emt 0:00:29]} 33. Kf1 {[%emt 0:00:07]} Ne1 {[%emt 0:00:11]} 34. Rf2 {[%emt 0:00:15]} Nxd3 {[%emt 0:00:36]} 35. Bxd3 {[%emt 0:00:01]} Qh1+ {[%emt 0:00:02]} 36. Ke2 {[%emt 0:00:02]} Qxc1 {[%emt 0:00:00]} 37. Ne4 {[%emt 0:00:07]} Rxd3 {[%emt 0:00:08]} 38. Kxd3 {[%emt 0:00:04]} Qc4+ {[%emt 0:00:21]} 39. Kd2 {[%emt 0:00:01]} Qxe4 {[%emt 0:00:05]} 40. f5 {[%emt 0:00:06]} Rd4+ {[%emt 0:00:09]} 41. Kc3 {[%emt 0:00:03]} Qd3# {[%emt 0:00:02]} 0-1

[Event "AI Cup Div-3 2023"]
[Site "Online"]
[Date "2023.09.25"]
[Round "51.3"]
[White "Beerdsen, Thomas"]
[Black "Vokhidov, Shamsiddin"]
[Result "1-0"]
[Annotator "ChessBase"]
[ECO "C52"]
[WhiteElo "2511"]
[BlackElo "2578"]
[PlyCount "59"]
[EventDate "2023.09.18"]
[EventType "k.o."]
[EventCountry "NET"]
[SourceTitle "playchess.com"]
[Source "ChessBase"]
[SourceQuality "1"]
[TimeControl "900+3"]

1. e4 {[%emt 0:00:08]} e5 {[%emt 0:00:08]} 2. Nf3 {[%emt 0:00:04]} Nc6 {[%emt 0:03:03]} 3. Bc4 {[%emt 0:00:07]} Bc5 {[%emt 0:00:05]} 4. b4 {[%emt 0:00:05]} Bxb4 {[%emt 0:00:05]} 5. c3 {[%emt 0:00:04]} Ba5 {[%emt 0:00:03]} 6. d4 {[%emt 0:00:05]} d6 {[%emt 0:00:04]} 7. Qb3 {[%emt 0:00:08]} Qd7 {[%emt 0:00:04]} 8. O-O {[%emt 0:00:06]} Bb6 {[%emt 0:00:06]} 9. Nbd2 {[%emt 0:00:05]} Na5 {[%emt 0:00:09]} 10. Qc2 {[%emt 0:00:05]} Nxc4 {[%emt 0:00:20]} 11. Nxc4 {[%emt 0:00:03]} Qc6 {[%emt 0:00:04]} 12. Nxb6 {[%emt 0:00:05]} axb6 {[%emt 0:00:03]} 13. dxe5 {[%emt 0:00:04]} dxe5 {[%emt 0:00:06]} 14. Nxe5 {[%emt 0:00:07]} Qa4 {[%emt 0:00:03]} 15. Qd3 {[%emt 0:00:36]} Nf6 {[%emt 0:00:15]} 16. Qg3 {[%emt 0:00:13]} O-O {[%emt 0:00:08]} 17. Bh6 {[%emt 0:00:21]} Nh5 {[%emt 0:00:06]} 18. Qf3 {[%emt 0:00:33]} Nf6 {[%emt 0:01:39]} 19. Qg3 {[%emt 0:00:05]} Nh5 {[%emt 0:00:05]} 20. Qh4 {[%emt 0:00:03]} gxh6 {[%emt 0:00:47]} 21. Qxh5 {[%emt 0:00:05]} Ra5 {[%emt 0:00:22]} 22. f4 {[%emt 0:00:51]} f6 {[%emt 0:00:05]} 23. Rf3 {[%emt 0:01:15]} fxe5 {[%emt 0:00:10]} 24. Rg3+ {[%emt 0:00:19]} Kh8 {[%emt 0:00:05]} 25. Qxh6 {[%emt 0:00:11]} Rf7 {[%emt 0:00:05]} 26. Qg5 {[%emt 0:00:35]} Qe8 {[%emt 0:00:09]} 27. Rd1 {[%emt 0:00:06]} Rxa2 {[%emt 0:01:20]} 28. Qxe5+ {[%emt 0:00:10]} Qxe5 {[%emt 0:00:12]} 29. Rd8+ {[%emt 0:00:04]} Rf8 {[%emt 0:00:05]} 30. Rxf8# {[%emt 0:00:04]} 1-0

[Event "AI Cup Div-3 2023"]
[Site "Online"]
[Date "2023.09.26"]
[Round "52.1"]
[White "Kramnik, Vladimir"]
[Black "Matlakov, Maxim"]
[Result "1-0"]
[Annotator "TA"]
[ECO "B90"]
[WhiteElo "2753"]
[BlackElo "2674"]
[PlyCount "57"]
[EventDate "2023.09.18"]
[EventType "k.o."]
[EventCountry "NET"]
[SourceTitle "playchess.com"]
[Source "ChessBase"]
[SourceQuality "1"]
[TimeControl "900+3"]

{[%evp 13,57,25,33,2,14,-23,6,13,15,35,23,1,42,36,53,47,49,37,71,87,82,77,87,85,72,59,55,-356,-350,-373,-373,-474,-439,-509,-502,-489,-468,-623,189,216,215,-314,222,191,29998,29999]} 1. e4 {[%emt 0:00:05]} c5 {[%emt 0:00:05]} 2. Nf3 {[%emt 0:00:02][%cal Bg1f3,Bf3d4,Bd4b3][%mdl 32]} d6 {[%emt 0:00:03]} 3. d4 {[%emt 0:00:02]} cxd4 {[%emt 0:00:02]} 4. Nxd4 {[%emt 0:00:01]} Nf6 {[%emt 0:00:01]} 5. Nc3 {[%emt 0:00:01]} a6 {[%emt 0:00:03]} 6. Be3 {[%emt 0:00:01]} e5 {[%emt 0:00:08]} 7. Nb3 {[%emt 0:00:02]} Be7 {[%emt 0:00:06]} 8. h3 {[%emt 0:00:01] B90: Sicilian Najdorf: Unusual White 6th moves, 6 Be3 Ng4 and 6 Be3 e5.} Be6 {[%emt 0:00:36]} 9. Qf3 {[%emt 0:00:01]} Nbd7 {[%emt 0:00:18][%cal Bb8d7,Bd7b6,Bb6c4][%mdl 32]} 10. O-O-O {[%emt 0:00:33] The position is equal.} Rc8 {[%emt 0:00:07][%cal Oc8c3]} 11. Nd5 {[%emt 0:00:04]} Bxd5 {[%emt 0:00:14][%mdl 64] Remove Defender} 12. exd5 {[%emt 0:00:02]} Qc7 {[%emt 0:00:06][%csl Gc8][%cal Rc7c2]} 13. c3 {[%emt 0:00:01] Active counter play!} Nb6 {[%emt 0:00:37]} 14. Kb1 {[%emt 0:00:12] [#]} Nc4 $146 {[%emt 0:00:21]} ({Predecessor:} 14... O-O 15. g4 e4 16. Qe2 Nfxd5 17. Bd4 Qc6 18. Ka1 Nf4 19. Qe3 Nbd5 20. Qxe4 Rfe8 {1-0 Bartalini,C (2310)-Secchi,D (2403) WS MN/140 email 2016}) 15. Bc1 {[%emt 0:00:50]} b5 {[%emt 0:00:03]} 16. g4 {[%emt 0:00:33][%cal Bg2g4,Bg4g5][%mdl 32]} O-O {[%emt 0:01:06]} 17. g5 {[%emt 0:00:14]} Nd7 {[%emt 0:00:04]} 18. Bd3 {[%emt 0:00:54]} a5 {[%emt 0:00:47]} 19. Rhg1 {[%emt 0:01:45][%cal Bh1g1,Bg1g4,Bg4h4,Bh4h6][%mdl 32]} Ndb6 {[%emt 0:02:51] [#]} 20. Bxh7+ $2 {[%emt 0:04:35][%mdl 8192]} Kxh7 $19 {[%emt 0:00:03]} 21. Qh5+ {[%emt 0:00:00]} Kg8 {[%emt 0:00:01]} 22. Rg4 {[%emt 0:00:01] [#] White threatens Rh4 and mate.} Qd7 $1 {[%emt 0:00:05]} 23. Rh4 {[%emt 0:00:02][%csl Gh4][%cal Rh5h8]} Qf5+ {[%emt 0:00:06]} 24. Ka1 {[%emt 0:00:01][%csl Gh4][%cal Rh5h8]} f6 {[%emt 0:00:02][%cal Rf6g5]} (24... Qxf2 $2 25. Qh8#) 25. Rg1 {[%emt 0:00:02] gxf6 would be deadly.} Nxd5 {[%emt 0:07:01][%mdl 8192]} (25... fxg5 $19 26. Bxg5 Nxd5 27. Bxe7 Qxh5 28. Rxh5 Nxe7) 26. gxf6 $40 {[%emt 0:00:42][%mdl 192] Discovered Attack, Deflection. White attacks with force.} Qxf6 {[%emt 0:00:01]} 27. Qh7+ {[%emt 0:00:22]} Kf7 {[%emt 0:00:01]} 28. Rh6 {[%emt 0:00:04]} Qxf2 $2 {[%emt 0:00:04]} (28... a4 $18) 29. Qg6+ {[%emt 0:00:04] White used his chance. Excellently played by Kramnik!   Weighted Error Value: White=0.58/Black=0.61} 1-0

[Event "AI Cup Div-3 2023"]
[Site "Online"]
[Date "2023.09.26"]
[Round "52.1"]
[White "Esipenko, Andrey"]
[Black "Kravtsiv, Martyn"]
[Result "1/2-1/2"]
[Annotator "ChessBase"]
[ECO "D36"]
[WhiteElo "2683"]
[BlackElo "2598"]
[PlyCount "86"]
[EventDate "2023.09.18"]
[EventType "k.o."]
[EventCountry "NET"]
[SourceTitle "playchess.com"]
[Source "ChessBase"]
[SourceQuality "1"]
[TimeControl "900+3"]

1. d4 {[%emt 0:00:09]} d5 {[%emt 0:00:07]} 2. c4 {[%emt 0:00:02]} e6 {[%emt 0:00:01]} 3. Nc3 {[%emt 0:00:05]} Nf6 {[%emt 0:00:02]} 4. cxd5 {[%emt 0:00:02]} exd5 {[%emt 0:00:00]} 5. Bg5 {[%emt 0:00:02]} c6 {[%emt 0:00:03]} 6. Qc2 {[%emt 0:00:02]} Be7 {[%emt 0:00:02]} 7. e3 {[%emt 0:00:02]} Nbd7 {[%emt 0:00:02]} 8. Bd3 {[%emt 0:00:03]} Nh5 {[%emt 0:00:02]} 9. h4 {[%emt 0:00:19]} g6 {[%emt 0:01:22]} 10. Nf3 {[%emt 0:00:17]} Nb6 {[%emt 0:00:04]} 11. Ne5 {[%emt 0:01:36]} Be6 {[%emt 0:03:20]} 12. g4 {[%emt 0:00:58]} Nf6 {[%emt 0:00:44]} 13. h5 {[%emt 0:00:11]} Rg8 {[%emt 0:00:38]} 14. hxg6 {[%emt 0:00:49]} hxg6 {[%emt 0:00:00]} 15. Rg1 {[%emt 0:00:54]} Nfd7 {[%emt 0:00:48]} 16. Bxe7 {[%emt 0:00:14]} Qxe7 {[%emt 0:00:03]} 17. O-O-O {[%emt 0:00:00]} O-O-O {[%emt 0:00:30]} 18. f4 {[%emt 0:00:20]} Nxe5 {[%emt 0:01:50]} 19. dxe5 {[%emt 0:00:54]} d4 {[%emt 0:00:02]} 20. exd4 {[%emt 0:01:14]} Rxd4 {[%emt 0:00:04]} 21. Be4 {[%emt 0:00:47]} Rxd1+ {[%emt 0:00:24]} 22. Qxd1 {[%emt 0:00:12]} Qc5 {[%emt 0:00:54]} 23. Kb1 {[%emt 0:01:29]} Nc4 {[%emt 0:01:04]} 24. Qc1 {[%emt 0:01:21]} Rd8 {[%emt 0:00:38]} 25. Ka1 {[%emt 0:00:02]} Ne3 {[%emt 0:01:56]} 26. Bf3 {[%emt 0:00:34]} Kb8 {[%emt 0:00:55]} 27. Be2 {[%emt 0:00:41]} Nc2+ {[%emt 0:00:15]} 28. Kb1 {[%emt 0:00:01]} Nd4 {[%emt 0:00:00]} 29. Qe3 {[%emt 0:00:17]} Qa5 {[%emt 0:00:19]} 30. Bd3 {[%emt 0:00:17]} Nb5 {[%emt 0:00:04]} 31. Bxb5 {[%emt 0:00:25]} cxb5 {[%emt 0:00:01]} 32. b3 {[%emt 0:00:23]} a6 {[%emt 0:00:10]} 33. Ne4 {[%emt 0:00:08]} Rh8 {[%emt 0:00:01]} 34. Qg3 {[%emt 0:00:34]} Bxg4 {[%emt 0:00:09]} 35. Qxg4 {[%emt 0:00:44]} Rh2 {[%emt 0:00:01]} 36. Rg2 {[%emt 0:00:00]} Qe1+ {[%emt 0:00:01]} 37. Kb2 {[%emt 0:00:00]} Rh1 {[%emt 0:00:01]} 38. Rc2 {[%emt 0:00:28]} Qxe4 {[%emt 0:00:01]} 39. Qc8+ {[%emt 0:00:02]} Ka7 {[%emt 0:00:01]} 40. Qc5+ {[%emt 0:00:01]} Ka8 {[%emt 0:00:01]} 41. Qc8+ {[%emt 0:00:04]} Ka7 {[%emt 0:00:00]} 42. Qc5+ {[%emt 0:00:01]} Ka8 {[%emt 0:00:01]} 43. Qc8+ {[%emt 0:00:06]} Ka7 {[%emt 0:00:01]} 1/2-1/2

[Event "AI Cup Div-3 2023"]
[Site "Online"]
[Date "2023.09.26"]
[Round "52.1"]
[White "Malakhov, Vladimir"]
[Black "Radjabov, Teimour"]
[Result "0-1"]
[Annotator "TA"]
[ECO "D78"]
[WhiteElo "2646"]
[BlackElo "2745"]
[PlyCount "82"]
[EventDate "2023.09.18"]
[EventType "k.o."]
[EventCountry "NET"]
[SourceTitle "playchess.com"]
[Source "ChessBase"]
[SourceQuality "1"]
[TimeControl "900+3"]

{[%evp 15,82,0,0,0,0,0,0,0,16,3,6,8,11,-17,-22,-80,-73,-68,-73,-66,-77,-95,-97,-102,-115,-134,-144,-177,-170,-228,-220,-225,-228,-251,-251,-288,-298,-275,-258,-300,-296,-444,-422,-529,-510,-513,-330,-318,-327,-322,-303,-305,-195,-186,-28,-264,-267,-361,-364,-350,-342,-367,-304,-355,-338,-408,-390,-1156,-1145]} 1. Nf3 {[%emt 0:00:09]} Nf6 {[%emt 0:00:11]} 2. g3 {[%emt 0:00:05]} g6 {[%emt 0:00:06]} 3. c4 {[%emt 0:00:09]} Bg7 {[%emt 0:00:01]} 4. Bg2 {[%emt 0:00:01]} c6 {[%emt 0:00:03]} 5. O-O {[%emt 0:00:56]} O-O {[%emt 0:00:07]} 6. d4 {[%emt 0:00:31]} d5 {[%emt 0:00:03]} 7. Qb3 {[%emt 0:00:01]} Qb6 {[%emt 0:00:06]} 8. Nc3 {[%emt 0:00:03]} Rd8 {[%emt 0:00:01]} 9. Bd2 {[%emt 0:00:42] D78: Fianchetto Grünfeld: 6 0-0 c6.} dxc4 {[%emt 0:00:07]} 10. Qxc4 {[%emt 0:00:02]} Be6 {[%emt 0:00:01] Repels e4} 11. Qa4 {[%emt 0:01:06] The position is equal.} Na6 {[%emt 0:00:03]} 12. e4 {[%emt 0:02:12]} Bg4 {[%emt 0:00:13] Hoping for ...Bxf3.} (12... Qxb2 $2 13. Rfb1 $18) 13. Be3 {[%emt 0:00:11] [#]} Nd7 $146 {[%emt 0:02:42]} (13... Qxb2 14. Rfc1 Qb6 15. Ne5 $16) ({Predecessor:} 13... Qxb2 14. Rfc1 Qb4 15. Qxb4 Nxb4 16. Rab1 c5 17. dxc5 Nd3 18. Rd1 Bxf3 19. Bxf3 Ne5 {0-1 Vachier Lagrave,M (2778)-Radjabov,T (2765) Chessable Masters GpB rapid 2020 (7)}) 14. Qc2 {[%emt 0:02:06]} (14. Ng5 {feels hotter.} h6 15. Nxf7 Kxf7 16. Qc4+) 14... Bxf3 {[%emt 0:00:27]} 15. Bxf3 {[%emt 0:00:03]} (15. d5 $11 {keeps the balance.} Bxe4 16. Nxe4 (16. Bxe4 c5 $11) 16... Qxb2 17. Qxb2 Bxb2 18. Rab1) 15... Bxd4 $17 {[%emt 0:00:13][%cal Od7e5] [#] ...Ne5! would be deadly.} 16. Na4 {[%emt 0:00:29]} Qb4 {[%emt 0:00:04] Strongly threatening ...Bxe3.} 17. a3 {[%emt 0:01:12]} Qd6 {[%emt 0:00:03]} 18. Rad1 {[%emt 0:01:00]} e5 {[%emt 0:00:05][%cal Be7e5,Be5d4][%mdl 32]} 19. b4 {[%emt 0:00:05]} Nc7 {[%emt 0:00:26][%cal Ba6c7,Bc7b5,Bb5c3][%mdl 32]} 20. Bxd4 {[%emt 0:00:59]} exd4 {[%emt 0:00:03]} 21. Bg2 {[%emt 0:00:01]} a5 {[%emt 0:00:15]} 22. Nc5 {[%emt 0:00:15]} (22. Bh3 {is a better defense.}) 22... Nxc5 $19 {[%emt 0:00:10]} 23. bxc5 {[%emt 0:00:02]} Qe7 {[%emt 0:00:02]} 24. f4 {[%emt 0:01:36]} Nb5 {[%emt 0:00:17]} 25. f5 {[%emt 0:00:49]} Nc3 {[%emt 0:00:20]} (25... Nxa3 $2 26. Qc1 Nb5 27. f6 $19) 26. Rd3 {[%emt 0:00:04]} Qxc5 {[%emt 0:00:03]} 27. Qf2 {[%emt 0:00:07]} Rd7 {[%emt 0:00:04]} (27... Qxa3 28. fxg6 f5 29. exf5 (29. Rxd4 hxg6 30. Kh1 Rxd4 $11) (29. gxh7+ Kh8 $11) 29... hxg6 30. f6 $16 (30. fxg6 Rf8 $11)) 28. f6 {[%emt 0:00:25]} (28. Bh3 $142 Nxe4 29. Qf4) 28... Re8 {[%emt 0:00:09]} (28... Qxa3 $2 29. e5 $19) 29. Re1 {[%emt 0:00:10]} Rd6 {[%emt 0:01:07]} (29... Qxa3 30. Bh3 Rdd8 31. e5 $19) 30. g4 {[%emt 0:00:43]} Qg5 {[%emt 0:00:38] [#] Inhibits Qh4. ...c5 is the strong threat.} 31. Rxd4 {[%emt 0:00:06]} Rxf6 {[%emt 0:00:06]} (31... Qxf6 $2 32. Qxf6 Rxf6 33. e5 $19) 32. Qe3 {[%emt 0:00:14]} Qxe3+ {[%emt 0:00:41]} (32... Qxg4 33. e5 (33. Qxc3 Qg5 $16) 33... Qc8 34. Bh3 $18 (34. Qxc3 Rfe6 $16)) 33. Rxe3 {[%emt 0:00:01]} Nb5 {[%emt 0:00:01]} 34. Rd7 {[%emt 0:00:02]} b6 $2 {[%emt 0:01:06]} (34... Re5 $19 35. Rxb7 Rc5) 35. a4 $2 {[%emt 0:00:04] This costs White the game.} (35. e5 $11 {and White has nothing to worry.} Rfe6 36. a4) 35... Rd6 {[%emt 0:00:08]} 36. Rb7 {[%emt 0:00:02]} Rd1+ {[%emt 0:00:02]} 37. Kf2 {[%emt 0:00:03]} Nd6 {[%emt 0:00:01]} 38. Rd7 {[%emt 0:00:01]} Rd2+ {[%emt 0:00:20]} 39. Kg1 {[%emt 0:00:02]} Re5 {[%emt 0:00:43]} 40. Bf1 {[%emt 0:00:04]} Rxe4 {[%emt 0:00:06]} ({Not} 40... Nxe4 41. Rxe4 (41. Rxd2 $2 Nxd2 42. Rxe5 Nf3+ 43. Kf2 Nxe5 $19) 41... Rxe4 42. Rxd2 $17) 41. Rxd6 $2 {[%emt 0:00:02]} (41. Rxe4 Nxe4 42. Rxd2 Nxd2 43. Bd3) 41... Rxg4+ {[%emt 0:00:01] Weighted Error Value: White=0.53/Black=0.23 (precise)} ({Stronger than} 41... Rxe3 42. Rxd2 Re4 43. h3 $11) 0-1

[Event "AI Cup Div-3 2023"]
[Site "Online"]
[Date "2023.09.26"]
[Round "52.1"]
[White "Durarbayli, Vasif"]
[Black "Chigaev, Maksim"]
[Result "1-0"]
[Annotator "ChessBase"]
[ECO "C84"]
[WhiteElo "2625"]
[BlackElo "2615"]
[PlyCount "63"]
[EventDate "2023.09.18"]
[EventType "k.o."]
[EventCountry "NET"]
[SourceTitle "playchess.com"]
[Source "ChessBase"]
[SourceQuality "1"]
[TimeControl "900+3"]

1. e4 {[%emt 0:00:03]} e5 {[%emt 0:00:05]} 2. Nf3 {[%emt 0:00:02]} Nc6 {[%emt 0:00:01]} 3. Bb5 {[%emt 0:00:01]} a6 {[%emt 0:00:00]} 4. Ba4 {[%emt 0:00:00]} Nf6 {[%emt 0:00:01]} 5. O-O {[%emt 0:00:02]} Be7 {[%emt 0:00:01]} 6. d3 {[%emt 0:00:02]} d6 {[%emt 0:00:01]} 7. c4 {[%emt 0:00:01]} O-O {[%emt 0:00:01]} 8. h3 {[%emt 0:00:01]} Be6 {[%emt 0:00:05]} 9. Nc3 {[%emt 0:00:06]} Nd7 {[%emt 0:00:01]} 10. Be3 {[%emt 0:00:02]} Qe8 {[%emt 0:00:02]} 11. Nd5 {[%emt 0:01:15]} Bd8 {[%emt 0:00:03]} 12. d4 {[%emt 0:00:07]} exd4 {[%emt 0:00:42]} 13. Nxd4 {[%emt 0:00:03]} Nxd4 {[%emt 0:00:04]} 14. Bxd4 {[%emt 0:00:34]} c6 {[%emt 0:00:02]} 15. Ne3 {[%emt 0:00:02]} b5 {[%emt 0:00:48]} 16. Bb3 {[%emt 0:00:39]} c5 {[%emt 0:00:43]} 17. Bc3 {[%emt 0:00:02]} b4 {[%emt 0:00:00]} 18. Be1 {[%emt 0:00:11]} Bf6 {[%emt 0:00:01]} 19. Qxd6 {[%emt 0:00:31]} Bxb2 {[%emt 0:00:34]} 20. Rd1 {[%emt 0:00:02]} Be5 {[%emt 0:01:11]} 21. Qd3 {[%emt 0:01:05]} Nb6 {[%emt 0:00:24]} 22. f4 {[%emt 0:00:11]} Bd4 {[%emt 0:00:09]} 23. Bf2 {[%emt 0:01:09]} Rc8 {[%emt 0:02:27]} 24. e5 {[%emt 0:00:56]} f5 {[%emt 0:01:02]} 25. Nd5 {[%emt 0:00:51]} Bxf2+ {[%emt 0:01:15]} 26. Rxf2 {[%emt 0:00:03]} Bxd5 {[%emt 0:04:30]} 27. cxd5 {[%emt 0:00:00]} c4 {[%emt 0:00:00]} 28. Qd4 {[%emt 0:00:02]} Qb5 {[%emt 0:00:05]} 29. Bc2 {[%emt 0:00:07]} a5 {[%emt 0:00:11]} 30. e6 {[%emt 0:01:33]} Rf6 {[%emt 0:00:20]} 31. Qe5 {[%emt 0:00:39]} a4 {[%emt 0:00:25]} 32. d6 {[%emt 0:00:33]} 1-0

[Event "AI Cup Div-3 2023"]
[Site "Online"]
[Date "2023.09.26"]
[Round "52.1"]
[White "Rakhmanov, Aleksandr"]
[Black "Beerdsen, Thomas"]
[Result "1/2-1/2"]
[Annotator "ChessBase"]
[ECO "C01"]
[WhiteElo "2614"]
[BlackElo "2511"]
[PlyCount "144"]
[EventDate "2023.09.18"]
[EventType "k.o."]
[EventCountry "NET"]
[SourceTitle "playchess.com"]
[Source "ChessBase"]
[SourceQuality "1"]
[TimeControl "900+3"]

1. d4 {[%emt 0:00:11]} d5 {[%emt 0:00:06]} 2. c4 {[%emt 0:00:01]} e5 {[%emt 0:00:02]} 3. e3 {[%emt 0:00:07]} exd4 {[%emt 0:00:07]} 4. exd4 {[%emt 0:00:00]} Nf6 {[%emt 0:00:05]} 5. Nc3 {[%emt 0:00:01]} Nc6 {[%emt 0:00:03]} 6. Be3 {[%emt 0:00:05]} Bb4 {[%emt 0:00:05]} 7. Bd3 {[%emt 0:00:05]} Be6 {[%emt 0:00:03]} 8. c5 {[%emt 0:00:14]} Bxc5 {[%emt 0:00:03]} 9. dxc5 {[%emt 0:00:06]} d4 {[%emt 0:00:01]} 10. Bd2 {[%emt 0:01:04]} dxc3 {[%emt 0:00:05]} 11. Bxc3 {[%emt 0:00:00]} Qd5 {[%emt 0:01:28]} 12. Ne2 {[%emt 0:00:49]} O-O-O {[%emt 0:00:24]} 13. Nf4 {[%emt 0:00:28]} Qg5 {[%emt 0:01:05]} 14. Nxe6 {[%emt 0:00:28]} Qxg2 {[%emt 0:00:53]} 15. Nxd8 {[%emt 0:00:40]} Qxh1+ {[%emt 0:00:16]} 16. Kd2 {[%emt 0:02:41]} Qxd1+ {[%emt 0:00:05]} 17. Rxd1 {[%emt 0:00:00]} Rxd8 {[%emt 0:00:02]} 18. Kc1 {[%emt 0:02:42]} Rd5 {[%emt 0:00:50]} 19. b4 {[%emt 0:00:05]} a5 {[%emt 0:00:17]} 20. a3 {[%emt 0:00:19]} axb4 {[%emt 0:00:05]} 21. axb4 {[%emt 0:00:01]} h6 {[%emt 0:01:44]} 22. Bc4 {[%emt 0:01:08]} Rf5 {[%emt 0:02:30]} 23. Bxf7 {[%emt 0:00:12]} Rxf2 {[%emt 0:02:16]} 24. Be6+ {[%emt 0:00:18]} Kb8 {[%emt 0:00:01]} 25. b5 {[%emt 0:01:06]} Rf3 {[%emt 0:00:48]} 26. Bb2 {[%emt 0:01:49]} Re3 {[%emt 0:01:36]} 27. Bf5 {[%emt 0:00:33]} Ne7 {[%emt 0:00:24]} 28. Rd8+ {[%emt 0:00:12]} Ka7 {[%emt 0:00:01]} 29. b6+ {[%emt 0:00:28]} cxb6 {[%emt 0:00:04]} 30. cxb6+ {[%emt 0:00:00]} Kxb6 {[%emt 0:00:05]} 31. Bc2 {[%emt 0:00:39]} Kc7 {[%emt 0:00:17]} 32. Rd1 {[%emt 0:00:01]} Ned5 {[%emt 0:00:14]} 33. Rg1 {[%emt 0:00:03]} g5 {[%emt 0:00:05]} 34. Rf1 {[%emt 0:00:01]} Re6 {[%emt 0:00:17]} 35. Bd4 {[%emt 0:00:02]} Nf4 {[%emt 0:00:03]} 36. Kb2 {[%emt 0:00:05]} N6d5 {[%emt 0:00:03]} 37. Bb3 {[%emt 0:00:01]} Re2+ {[%emt 0:00:01]} 38. Ka3 {[%emt 0:00:01]} b5 {[%emt 0:00:06]} 39. Rc1+ {[%emt 0:00:07]} Kd6 {[%emt 0:00:01]} 40. Rc8 {[%emt 0:00:01]} Ne3 {[%emt 0:00:10]} 41. Rd8+ {[%emt 0:00:07]} Kc7 {[%emt 0:00:04]} 42. Rh8 {[%emt 0:00:01]} Nf5 {[%emt 0:00:07]} 43. Rh7+ {[%emt 0:00:04]} Kc6 {[%emt 0:00:03]} 44. Bc3 {[%emt 0:00:03]} Nd5 {[%emt 0:00:02]} 45. Ba5 {[%emt 0:00:03]} Rxh2 {[%emt 0:00:04]} 46. Rh8 {[%emt 0:00:03]} Nfe3 {[%emt 0:00:02]} 47. Rc8+ {[%emt 0:00:01]} Kb7 {[%emt 0:00:01]} 48. Rc5 {[%emt 0:00:02]} b4+ {[%emt 0:00:05]} 49. Ka4 {[%emt 0:00:03]} Nb6+ {[%emt 0:00:04]} 50. Kb5 {[%emt 0:00:02]} Nc8 {[%emt 0:00:04]} 51. Rc7+ {[%emt 0:00:03]} Kb8 {[%emt 0:00:00]} 52. Be6 {[%emt 0:00:02]} Rc2 {[%emt 0:00:01]} 53. Rh7 {[%emt 0:00:07]} Nd6+ {[%emt 0:00:04]} 54. Kxb4 {[%emt 0:00:01]} Rb2+ {[%emt 0:00:04]} 55. Kc3 {[%emt 0:00:03]} Rb7 {[%emt 0:00:04]} 56. Rxh6 {[%emt 0:00:06]} Rb5 {[%emt 0:00:05]} 57. Rh8+ {[%emt 0:00:02]} Kb7 {[%emt 0:00:02]} 58. Rh7+ {[%emt 0:00:00]} Ka6 {[%emt 0:00:03]} 59. Bd8 {[%emt 0:00:03]} Rb7 {[%emt 0:00:04]} 60. Rh1 {[%emt 0:00:03]} Kb5 {[%emt 0:00:02]} 61. Rb1+ {[%emt 0:00:02]} Kc6 {[%emt 0:00:01]} 62. Rxb7 {[%emt 0:00:01]} Nxb7 {[%emt 0:00:00]} 63. Bxg5 {[%emt 0:00:00]} Nd5+ {[%emt 0:00:01]} 64. Kd4 {[%emt 0:00:01]} Nc7 {[%emt 0:00:03]} 65. Bh3 {[%emt 0:00:02]} Nb5+ {[%emt 0:00:03]} 66. Ke5 {[%emt 0:00:01]} N7d6 {[%emt 0:00:01]} 67. Bg2+ {[%emt 0:00:02]} Kd7 {[%emt 0:00:02]} 68. Bd5 {[%emt 0:00:01]} Nc3 {[%emt 0:00:03]} 69. Bb3 {[%emt 0:00:02]} Kc6 {[%emt 0:00:04]} 70. Be7 {[%emt 0:00:03]} Nc8 {[%emt 0:00:04]} 71. Ba4+ {[%emt 0:00:02]} Nxa4 {[%emt 0:00:01]} 72. Bc5 {[%emt 0:00:03]} Nxc5 {[%emt 0:00:02]} 1/2-1/2